fUST/lending_fUST_20250303
["ID","MTS","AMOUNT","RATE_DAILY","PERIOD"]
[355171643,1740943858639,-1179.19,0.00026097,2]
[355171645,1740943858652,-500.0,0.00026097,2]
[355171648,1740943858665,-1027.39,0.00026097,2]
[355171650,1740943858677,-500.0,0.00026097,2]
[355171652,1740943858689,-28830.23,0.00026097,2]
[355171655,1740943858701,-1197.97,0.00026097,2]
[355171657,1740943858715,-748.11,0.00026097,2]
[355171659,1740943858727,-500.0,0.00026097,2]
[355171662,1740943858740,-816.31,0.00026097,2]
[355171664,1740943858753,-657.54,0.00026097,2]
[355171666,1740943858765,-3309.1,0.00026097,2]
[355171669,1740943858780,-1343.89,0.00026097,2]
[355171671,1740943858792,-602.72,0.00026097,2]
[355171673,1740943858806,-500.0,0.00026097,2]
[355171676,1740943858820,-500.0,0.00026196,2]
[355171678,1740943858834,-544.5,0.00026196,2]
[355171681,1740943858848,-876.97,0.0002637,2]
[355171683,1740943858861,-671.91,0.0002637,2]
[355171685,1740943858871,-1050.62,0.0002637,2]
[355171705,1740943859054,-2712.97,0.00026371,2]
[355171709,1740943859077,-500.0,0.00026371,2]
[355171711,1740943859089,-6150.41,0.00026371,2]
[355171713,1740943859100,-1369.99,0.00026371,2]
[355171715,1740943859110,-1323.79,0.00026371,2]
[355171717,1740943859120,-684.84,0.00026371,2]
[355171719,1740943859129,-1767.76,0.00026371,2]
[355171721,1740943859140,-516.78968537,0.00026371,2]
[355171723,1740943859149,-1179.19,0.00026371,2]
[355171725,1740943859159,-500.0,0.00026371,2]
[355171727,1740943859170,-1027.39,0.00026371,2]
[355171729,1740943859179,-231.74162287,0.00026371,2]
[355171731,1740943859188,-28830.23,0.00026371,2]
[355171733,1740943859198,-1197.97,0.00026371,2]
[355171735,1740943859207,-748.11,0.00026371,2]
[355171737,1740943859218,-500.0,0.00026371,2]
[355171739,1740943859228,-816.31,0.00026371,2]
[355171741,1740943859237,-657.54,0.00026371,2]
[355171743,1740943859247,-3309.1,0.00026371,2]
[355171745,1740943859256,-1343.89,0.00026371,2]
[355171747,1740943859266,-602.72,0.00026371,2]
[355171749,1740943859278,-500.0,0.00026371,2]
[355171751,1740943859287,-262.54416289,0.0002647,2]
[355171753,1740943859297,-544.5,0.0002647,2]
[355171755,1740943859306,-164.17,0.000265,7]
[355171757,1740943859315,-683.0,0.000265,12]
[355171759,1740943859325,-2466.6581444,0.00026629,4]
[355171761,1740943859334,-876.97,0.00026644,2]
[355171763,1740943859344,-671.91,0.00026644,2]
[355171765,1740943859353,-1050.62,0.00026644,2]
[355171767,1740943859363,-2712.97,0.00026645,2]
[355171769,1740943859373,-500.0,0.00026645,2]
[355171771,1740943859382,-6150.41,0.00026645,2]
[355171773,1740943859392,-1369.99,0.00026645,2]
[355171775,1740943859402,-1323.79,0.00026645,2]
[355171777,1740943859411,-684.84,0.00026645,2]
[355171779,1740943859421,-1767.76,0.00026645,2]
[355171781,1740943859431,-1179.19,0.00026645,2]
[355171783,1740943859440,-500.0,0.00026645,2]
[355171785,1740943859449,-1027.39,0.00026645,2]
[355171787,1740943859459,-28830.23,0.00026645,2]
[355171789,1740943859469,-1197.97,0.00026645,2]
[355171791,1740943859478,-748.11,0.00026645,2]
[355171793,1740943859488,-500.0,0.00026645,2]
[355171795,1740943859497,-816.31,0.00026645,2]
[355171797,1740943859507,-657.54,0.00026645,2]
[355171799,1740943859516,-3309.1,0.00026645,2]
[355171801,1740943859529,-1343.89,0.00026645,2]
[355171803,1740943859539,-602.72,0.00026645,2]
[355171805,1740943859549,-500.0,0.00026645,2]
[355171807,1740943859559,-544.5,0.00026744,2]
[355171809,1740943859569,-151.0,0.00026744,7]
[355171811,1740943859579,-1152.0,0.00026845,2]
[355171813,1740943859589,-876.97,0.00026918,2]
[355171815,1740943859599,-671.91,0.00026918,2]
[355171817,1740943859608,-1050.62,0.00026918,2]
[355171819,1740943859618,-2712.97,0.00026919,2]
[355171821,1740943859628,-500.0,0.00026919,2]
[355171823,1740943859638,-6150.41,0.00026919,2]
[355171825,1740943859648,-1369.99,0.00026919,2]
[355171827,1740943859662,-1323.79,0.00026919,2]
[355171829,1740943859672,-684.84,0.00026919,2]
[355171831,1740943859681,-1767.76,0.00026919,2]
[355171833,1740943859691,-1179.19,0.00026919,2]
[355171835,1740943859701,-500.0,0.00026919,2]
[355171837,1740943859712,-1027.39,0.00026919,2]
[355171840,1740943859721,-28830.23,0.00026919,2]
[355171842,1740943859731,-1197.97,0.00026919,2]
[355171844,1740943859741,-748.11,0.00026919,2]
[355171846,1740943859750,-500.0,0.00026919,2]
[355171848,1740943859759,-816.31,0.00026919,2]
[355171850,1740943859769,-657.54,0.00026919,2]
[355171852,1740943859781,-3309.1,0.00026919,2]
[355171854,1740943859790,-1343.89,0.00026919,2]
[355171856,1740943859799,-602.72,0.00026919,2]
[355171858,1740943859810,-500.0,0.00026919,2]
[355171860,1740943859819,-3632.10935758,0.00027,2]
[355171862,1740943859828,-337.17640358,0.00027,2]
[355171864,1740943859838,-189.93196,0.00027,120]
[355171866,1740943859847,-544.5,0.00027018,2]
[355171868,1740943859858,-876.97,0.00027192,2]
[355171870,1740943859867,-671.91,0.00027192,2]
[355171872,1740943859877,-1050.62,0.00027192,2]
[355171874,1740943859888,-2712.97,0.00027193,2]
[355171876,1740943859899,-500.0,0.00027193,2]
[355171878,1740943859910,-6150.41,0.00027193,2]
[355171880,1740943859920,-1369.99,0.00027193,2]
[355171882,1740943859931,-1323.79,0.00027193,2]
[355171884,1740943859942,-684.84,0.00027193,2]
[355171886,1740943859953,-1767.76,0.00027193,2]
[355171888,1740943859965,-1179.19,0.00027193,2]
[355171890,1740943859976,-500.0,0.00027193,2]
[355171892,1740943859986,-1027.39,0.00027193,2]
[355171894,1740943859996,-28830.23,0.00027193,2]
[355171896,1740943860007,-1197.97,0.00027193,2]
[355171898,1740943860019,-748.11,0.00027193,2]
[355171900,1740943860034,-500.0,0.00027193,2]
[355171902,1740943860045,-816.31,0.00027193,2]
[355171904,1740943860058,-657.54,0.00027193,2]
[355171906,1740943860070,-3309.1,0.00027193,2]
[355171908,1740943860082,-1343.89,0.00027193,2]
[355171910,1740943860093,-602.72,0.00027193,2]
[355171913,1740943860107,-500.0,0.00027193,2]
[355171915,1740943860118,-544.5,0.00027292,2]
[355171917,1740943860128,-151.0,0.00027294,7]
[355171919,1740943860138,-500.47108357,0.00027397,2]
[355171920,1740943860148,-999.99,0.00027397,2]
[355171922,1740943860159,-999.99,0.00027397,2]
[355171924,1740943860169,-999.99,0.00027397,2]
[355171926,1740943860179,-999.99,0.00027397,2]
[355171928,1740943860189,-436.98731505,0.00027397,2]
[355171930,1740943860199,-1000.0,0.00027397,5]
[355171932,1740943860209,-1000.0,0.00027397,5]
[355171934,1740943860219,-1000.0,0.00027397,5]
[355171936,1740943860229,-316.38792659,0.00027397,5]
[355171938,1740943860239,-212.71343364,0.00027397,2]
[355171940,1740943860249,-416.962458,0.00027397,120]
[355171942,1740943860259,-876.97,0.00027466,2]
[355171944,1740943860269,-671.91,0.00027466,2]
[355171946,1740943860281,-1050.62,0.00027466,2]
[355171948,1740943860291,-2712.97,0.00027467,2]
[355171950,1740943860302,-294.39535913,0.00027467,2]
[355171952,1740943860312,-151.0,0.00027467,7]
[355171954,1740943860322,-6150.41,0.00027467,2]
[355171956,1740943860332,-1369.99,0.00027467,2]
[355171958,1740943860342,-1323.79,0.00027467,2]
[355171960,1740943860352,-684.84,0.00027467,2]
[355171962,1740943860362,-1767.76,0.00027467,2]
[355171964,1740943860372,-1179.19,0.00027467,2]
[355171966,1740943860382,-500.0,0.00027467,2]
[355171968,1740943860392,-1027.39,0.00027467,2]
[355171970,1740943860402,-28830.23,0.00027467,2]
[355171972,1740943860414,-1197.97,0.00027467,2]
[355171974,1740943860423,-748.11,0.00027467,2]
[355171976,1740943860433,-500.0,0.00027467,2]
[355171978,1740943860443,-816.31,0.00027467,2]
[355171980,1740943860452,-657.54,0.00027467,2]
[355171982,1740943860462,-3309.1,0.00027467,2]
[355171984,1740943860472,-1343.89,0.00027467,2]
[355171986,1740943860482,-602.72,0.00027467,2]
[355171988,1740943860491,-277.23135013,0.00027467,2]
[355171990,1740943860500,-44670.20870771,0.000275,2]
[355171992,1740943860510,-777.29139865,0.000275,30]
[355171994,1740943860519,-151.0,0.000275,7]
[355171996,1740943860528,-657.867335,0.000275,7]
[355171998,1740943860537,-657.867335,0.000275,7]
[355172000,1740943860547,-151.0,0.000275,7]
[355172002,1740943860557,-2853.78316498,0.00027558,2]
[355172004,1740943860566,-544.5,0.00027566,2]
[355172006,1740943860576,-151.0,0.00027567,7]
[355172008,1740943860585,-151.0,0.00027567,7]
[355172010,1740943860595,-151.0,0.00027567,7]
[355172012,1740943860604,-151.0,0.00027567,7]
[355172014,1740943860614,-151.0,0.00027567,7]
[355172016,1740943860623,-157.016785,0.00027567,7]
[355172018,1740943860632,-157.016785,0.00027567,7]
[355172020,1740943860641,-151.0,0.00027567,7]
[355172022,1740943860651,-844.84,0.00027604,15]
[355172023,1740943860660,-876.97,0.0002774,2]
[355172026,1740943860673,-671.91,0.0002774,2]
[355172028,1740943860683,-1050.62,0.0002774,2]
[355172030,1740943860692,-2712.97,0.00027741,2]
[355172032,1740943860702,-6150.41,0.00027741,2]
[355172034,1740943860712,-1369.99,0.00027741,2]
[355172036,1740943860721,-1323.79,0.00027741,2]
[355172038,1740943860731,-684.84,0.00027741,2]
[355172040,1740943860740,-1767.76,0.00027741,2]
[355172042,1740943860750,-1179.19,0.00027741,2]
[355172044,1740943860759,-416.29754215,0.00027741,2]
[355172046,1740943860769,-1027.39,0.00027741,2]
[355172048,1740943860780,-28830.23,0.00027741,2]
[355172050,1740943860790,-1197.97,0.00027741,2]
[355172052,1740943860799,-748.11,0.00027741,2]
[355172054,1740943860808,-500.0,0.00027741,2]
[355172056,1740943860818,-816.31,0.00027741,2]
[355172058,1740943860827,-657.54,0.00027741,2]
[355172060,1740943860837,-3309.1,0.00027741,2]
[355172062,1740943860848,-1343.89,0.00027741,2]
[355172064,1740943860857,-602.72,0.00027741,2]
[355172066,1740943860866,-500.0,0.00027752,5]
[355172068,1740943860875,-634.91320948,0.00027752,5]
[355172070,1740943860885,-500.0,0.00027752,5]
[355172072,1740943860895,-500.0,0.00027752,5]
[355172074,1740943860904,-544.5,0.0002784,2]
[355172076,1740943860913,-32219.93518821,0.0002799,2]
[355172078,1740943860923,-1175.9962099,0.0002799,7]
[355172080,1740943860933,-1171.43495179,0.0002799,2]
[355172082,1740943860942,-151.0,0.0002799,7]
[355172084,1740943860951,-683.0,0.00028,13]
[355172086,1740943860961,-876.97,0.00028014,2]
[355172088,1740943860971,-671.91,0.00028014,2]
[355172090,1740943860981,-1050.62,0.00028014,2]
[355172092,1740943860990,-2712.97,0.00028015,2]
[355172094,1740943861000,-151.0,0.00028015,7]
[355172096,1740943861009,-6150.41,0.00028015,2]
[355172098,1740943861028,-1369.99,0.00028015,2]
[355172100,1740943861038,-1323.79,0.00028015,2]
[355172102,1740943861047,-684.84,0.00028015,2]
[355172104,1740943861057,-1767.76,0.00028015,2]
[355172106,1740943861068,-1179.19,0.00028015,2]
[355172108,1740943861078,-1027.39,0.00028015,2]
[355172110,1740943861089,-28830.23,0.00028015,2]
[355172112,1740943861099,-1197.97,0.00028015,2]
[355172114,1740943861108,-748.11,0.00028015,2]
[355172116,1740943861118,-500.0,0.00028015,2]
[355172118,1740943861128,-816.31,0.00028015,2]
[355172120,1740943861138,-657.54,0.00028015,2]
[355172122,1740943861148,-3309.1,0.00028015,2]
[355172124,1740943861158,-1343.89,0.00028015,2]
[355172126,1740943861167,-602.72,0.00028015,2]
[355172128,1740943861178,-1000.0,0.00028052,5]
[355172130,1740943861189,-1000.0,0.00028052,5]
[355172132,1740943861199,-511.22600107,0.00028052,5]
[355172135,1740943861209,-1000.0,0.00028052,5]
[355172137,1740943861219,-1000.0,0.00028052,5]
[355172139,1740943861230,-500.0,0.00028052,5]
[355172140,1740943861240,-1000.0,0.00028052,5]
[355172141,1740943861249,-500.0,0.00028052,5]
[355172142,1740943861259,-1000.0,0.00028052,5]
[355172143,1740943861269,-500.0,0.00028052,5]
[355172144,1740943861280,-500.0,0.00028052,5]
[355172145,1740943861290,-500.0,0.00028052,5]
[355172146,1740943861300,-1000.0,0.00028052,5]
[355172147,1740943861310,-872.61294287,0.00028052,5]
[355172148,1740943861320,-500.0,0.00028052,5]
[355172149,1740943861329,-500.0,0.00028052,5]
[355172150,1740943861339,-500.0,0.00028052,5]
[355172151,1740943861348,-603.03949065,0.00028052,5]
[355172152,1740943861358,-544.5,0.00028114,2]
[355172153,1740943861367,-876.97,0.00028288,2]
[355172154,1740943861378,-671.91,0.00028288,2]
[355172155,1740943861388,-1050.62,0.00028288,2]
[355172156,1740943861397,-2712.97,0.00028289,2]
[355172158,1740943861407,-6150.41,0.00028289,2]
[355172159,1740943861418,-1369.99,0.00028289,2]
[355172160,1740943861427,-1323.79,0.00028289,2]
[355172161,1740943861437,-684.84,0.00028289,2]
[355172162,1740943861447,-1767.76,0.00028289,2]
[355172164,1740943861457,-1179.19,0.00028289,2]
[355172166,1740943861466,-1027.39,0.00028289,2]
[355172168,1740943861476,-28830.23,0.00028289,2]
[355172170,1740943861487,-1197.97,0.00028289,2]
[355172172,1740943861497,-748.11,0.00028289,2]
[355172174,1740943861507,-500.0,0.00028289,2]
[355172176,1740943861516,-816.31,0.00028289,2]
[355172178,1740943861527,-657.54,0.00028289,2]
[355172180,1740943861537,-3309.1,0.00028289,2]
[355172182,1740943861547,-1343.89,0.00028289,2]
[355172184,1740943861558,-602.72,0.00028289,2]
[355172186,1740943861567,-164.17,0.000283,7]
[355172188,1740943861577,-12097.89078008,0.00028312,2]
[355172190,1740943861587,-344.33537435,0.00028339,5]
[355172192,1740943861597,-500.0,0.00028352,5]
[355172194,1740943861607,-504.56521754,0.00028352,5]
[355172196,1740943861618,-1000.0,0.00028352,5]
[355172198,1740943861627,-500.0,0.00028352,5]
[355172200,1740943861637,-1000.0,0.00028352,5]
[355172202,1740943861647,-500.0,0.00028352,5]
[355172204,1740943861658,-501.53595314,0.00028352,5]
[355172206,1740943861668,-500.70252095,0.00028352,5]
[355172208,1740943861678,-1000.0,0.00028352,5]
[355172211,1740943861688,-544.5,0.00028388,2]
[355172213,1740943861698,-1560.31556793,0.000285,7]
[355172215,1740943861708,-877.12782242,0.00028562,2]
[355172217,1740943861717,-672.10348055,0.00028562,2]
[355172219,1740943861727,-1050.63174031,0.00028562,2]
[355172221,1740943861737,-2713.20870967,0.00028563,2]
[355172222,1740943861746,-6150.4100469,0.00028563,2]
[355172224,1740943861756,-1370.15381148,0.00028563,2]
[355172226,1740943861766,-1323.92935996,0.00028563,2]
[355172228,1740943861776,-684.85472753,0.00028563,2]
[355172230,1740943861786,-1767.81436995,0.00028563,2]
[355172232,1740943861796,-1179.35297652,0.00028563,2]
[355172234,1740943861806,-1027.60277827,0.00028563,2]
[355172236,1740943861815,-28830.3021,0.00028563,2]
[355172238,1740943861826,-1198.05,0.00028563,2]
[355172240,1740943861835,-748.28320569,0.00028563,2]
[355172243,1740943861846,-440.56555522,0.00028563,2]
[355172245,1740943861855,-816.44089661,0.00028563,2]
[355172247,1740943861865,-657.6408348,0.00028563,2]
[355172248,1740943861875,-3309.17545003,0.00028563,2]
[355172250,1740943861884,-1344.0777277,0.00028563,2]
[355172253,1740943861895,-602.95784595,0.00028563,2]
[355172255,1740943861904,-544.56118197,0.00028662,2]
[355172257,1740943861914,-165.45786287,0.000288,7]
[355172259,1740943861924,-1000.0,0.00028852,5]
[355172261,1740943861934,-866.32942414,0.00029,2]
[355172263,1740943861944,-2466.6581444,0.00029091,4]
[355172265,1740943861953,-151.0,0.00029091,7]
[355172267,1740943861964,-167.688624,0.00029125,7]
[355172269,1740943861973,-170.4,0.00029232,120]
[355172271,1740943861982,-150.5,0.00029242,120]
[355172273,1740943861992,-150.5,0.00029252,120]
[355172275,1740943862002,-1154.0,0.0002926,2]
[355172276,1740943862012,-150.5,0.00029264,120]
[355172278,1740943862022,-150.5,0.00029274,120]
[355172280,1740943862037,-150.5,0.00029284,120]
[355172297,1740943862046,-386.18,0.00029294,120]
[355172299,1740943862210,-683.0,0.000295,14]
[355172301,1740943862220,-2000.0,0.00029724,4]
[355172303,1740943862230,-3473.13554016,0.000299,120]
[355172305,1740943862240,-4907.17426445,0.0002996,7]
[355172307,1740943862249,-657.867335,0.0003,7]
[355172309,1740943862259,-657.867335,0.0003,7]
[355172311,1740943862271,-500.0,0.0003,10]
[355172313,1740943862281,-395.62250903,0.0003,10]
[355172315,1740943862291,-9222.68752513,0.0003,120]
[355172317,1740943862300,-48000.0,0.0003,2]
[355172319,1740943862310,-500.3,0.0003,2]
[355172321,1740943862320,-225.0,0.0003,2]
[355172323,1740943862331,-300.0,0.00030136,120]
[355172325,1740943862340,-300.0,0.00030136,120]
[355172327,1740943862350,-300.0,0.00030136,120]
[355172329,1740943862360,-300.0,0.00030136,120]
[355172331,1740943862370,-300.0,0.00030136,120]
[355172334,1740943862384,-300.0,0.00030136,120]
[355172336,1740943862395,-300.0,0.00030136,120]
[355172338,1740943862405,-300.0,0.00030136,120]
[355172340,1740943862414,-300.0,0.00030136,120]
[355172342,1740943862423,-300.0,0.00030136,120]
[355172344,1740943862433,-300.0,0.00030136,120]
[355172346,1740943862443,-300.0,0.00030136,120]
[355172348,1740943862453,-300.0,0.00030136,120]
[355172350,1740943862463,-300.0,0.00030136,120]
[355172352,1740943862473,-217.13777038,0.00030136,120]
[355172354,1740943862482,-167.688624,0.000305,7]
[355172356,1740943862492,-123.24040389,0.00030856,6]
[355172368,1740943862597,-56.3107183,0.00030856,6]
[355172370,1740943862608,-299.38102629,0.0003099,2]
[355172372,1740943862618,-189.54557696,0.00031,15]
[355172375,1740943862638,-500.0,0.0002226,2]
[355172377,1740943862648,-493.45442304,0.00031,15]
[355172379,1740943862658,-2466.6581444,0.00031781,4]
[355172381,1740943862668,-500.0,0.00031797,7]
[355172383,1740943862678,-2200.0,0.00031797,2]
[355172385,1740943862687,-395.760913,0.00031895,2]
[355172387,1740943862697,-5118.7605509,0.000319,2]
[355172389,1740943862707,-416.962458,0.00031963,120]
[355172391,1740943862717,-151.0,0.00031968,7]
[355172393,1740943862727,-7368.16562,0.00031999,2]
[355172395,1740943862737,-500.0,0.00032,10]
[355172397,1740943862747,-500.0,0.00032,10]
[355172399,1740943862757,-500.0,0.00032,10]
[355172401,1740943862766,-500.0,0.00032,10]
[355172403,1740943862775,-500.0,0.00032,10]
[355172405,1740943862785,-500.0,0.00032,10]
[355172407,1740943862794,-500.0,0.00032,10]
[355172408,1740943862803,-500.0,0.00032,10]
[355172409,1740943862813,-500.0,0.00032,10]
[355172410,1740943862822,-500.0,0.00032,10]
[355172411,1740943862832,-500.0,0.00032,10]
[355172412,1740943862841,-500.0,0.00032,10]
[355172413,1740943862851,-500.0,0.00032,10]
[355172414,1740943862860,-500.0,0.00032,10]
[355172415,1740943862870,-500.0,0.00032,10]
[355172416,1740943862879,-500.0,0.00032,10]
[355172417,1740943862889,-500.0,0.00032,10]
[355172418,1740943862899,-500.0,0.00032,10]
[355172419,1740943862908,-500.0,0.00032,10]
[355172420,1740943862918,-500.0,0.00032,10]
[355172421,1740943862929,-500.0,0.00032,10]
[355172422,1740943862939,-500.0,0.00032,10]
[355172423,1740943862948,-151.0,0.00032,7]
[355172424,1740943862957,-151.0,0.00032,7]
[355172425,1740943862967,-151.0,0.00032,7]
[355172426,1740943862976,-900.0,0.00032,10]
[355172427,1740943862985,-900.0,0.00032,10]
[355172428,1740943862995,-900.0,0.00032,10]
[355172429,1740943863004,-900.0,0.00032,10]
[355172430,1740943863013,-900.0,0.00032,10]
[355172431,1740943863027,-900.0,0.00032,10]
[355172432,1740943863036,-785.13789066,0.00032,10]
[355172433,1740943863050,-114.86210934,0.00032,10]
[355172435,1740943863062,-900.0,0.00032,10]
[355172437,1740943863072,-849.59789065,0.00032,10]
[355172439,1740943863086,-50.40210935,0.00032,10]
[355172441,1740943863096,-307.37410758,0.00032,10]
[355173416,1740945037865,-500.0,0.00019021,2]
[355173417,1740945037875,-500.0,0.00019021,2]
[355173418,1740945037885,-500.0,0.00019021,2]
[355173419,1740945037895,-500.0,0.00019021,2]
[355173420,1740945037905,-500.0,0.00019021,2]
[355173421,1740945037915,-500.0,0.00019021,2]
[355173422,1740945037924,-600.0,0.00019021,2]
[355173423,1740945037934,-600.0,0.00019021,2]
[355173424,1740945037944,-600.0,0.00019021,2]
[355173425,1740945037954,-600.0,0.00019021,2]
[355173426,1740945037964,-600.0,0.00019021,2]
[355173427,1740945037973,-600.0,0.00019021,2]
[355173428,1740945037983,-600.0,0.00019021,2]
[355173429,1740945037993,-600.0,0.00019021,2]
[355173430,1740945038002,-600.0,0.00019021,2]
[355173431,1740945038012,-600.0,0.00019021,2]
[355173432,1740945038021,-600.0,0.00019021,2]
[355173433,1740945038031,-997.90047472,0.00019021,2]
[355173434,1740945038040,-500.0,0.00019021,2]
[355173435,1740945038050,-500.0,0.00019021,2]
[355173436,1740945038061,-500.0,0.00019021,2]
[355173437,1740945038071,-692.62589242,0.00019021,2]
[355173438,1740945038081,-902.09952528,0.00019021,2]
[355173439,1740945038090,-172.17896011,0.0002107,2]
[355173440,1740945038100,-154.86492097,0.00021159,2]
[355173441,1740945038110,-355.8910854,0.00021159,2]
[355173442,1740945038119,-936.98400482,0.0002116,2]
[355173443,1740945038136,-314.27631281,0.0002116,2]
[355176176,1740946232266,-1154.67290161,0.00019059,2]
[355176177,1740946232279,-24900.0,0.00020558,2]
[355176178,1740946232290,-250.0,0.00020597,2]
[355176179,1740946232301,-2776.1747982,0.0002077,2]
[355176180,1740946232311,-3393.5967954,0.00020869,2]
[355176181,1740946232321,-150.0,0.000219,2]
[355176182,1740946232332,-3941.84066636,0.000219,3]
[355176183,1740946232343,-500.0,0.0002206,2]
[355176184,1740946232353,-500.0,0.0002206,2]
[355176185,1740946232367,-500.0,0.0002206,2]
[355176186,1740946232378,-500.0,0.0002206,2]
[355176187,1740946232388,-500.0,0.0002206,2]
[355176188,1740946232399,-474.76414061,0.0002206,2]
[355176189,1740946232409,-500.0,0.0002206,2]
[355176190,1740946232418,-500.0,0.0002206,2]
[355176191,1740946232430,-181.47590419,0.0002206,2]
[355176192,1740946232440,-1000.0,0.0002206,2]
[355176193,1740946232450,-500.0,0.0002206,2]
[355176194,1740946232460,-500.0,0.0002206,2]
[355176195,1740946232470,-500.0,0.0002206,2]
[355176196,1740946232480,-500.0,0.0002206,2]
[355176197,1740946232490,-500.0,0.0002206,2]
[355176198,1740946232500,-273.25386971,0.0002206,2]
[355176217,1740946238090,-226.74613029,0.0002206,2]
[355176218,1740946238100,-500.0,0.0002206,2]
[355176219,1740946238111,-500.0,0.0002206,2]
[355176220,1740946238130,-500.0,0.0002206,2]
[355176221,1740946238141,-4.97337181,0.0002206,2]
[355176332,1740946242258,-495.02662819,0.0002206,2]
[355176333,1740946242268,-500.0,0.0002206,2]
[355176334,1740946242278,-500.0,0.0002206,2]
[355176335,1740946242288,-500.0,0.0002206,2]
[355176336,1740946242299,-489.07337179,0.0002206,2]
[355176337,1740946242362,-10.92662821,0.0002206,2]
[355176338,1740946242374,-500.0,0.0002206,2]
[355176339,1740946242384,-500.0,0.0002206,2]
[355176340,1740946242394,-500.0,0.0002206,2]
[355176341,1740946242405,-500.0,0.0002206,2]
[355176342,1740946242415,-500.0,0.0002206,2]
[355176343,1740946242425,-500.0,0.0002206,2]
[355176344,1740946242435,-500.0,0.0002206,2]
[355176345,1740946242445,-512.84479477,0.0002206,2]
[355176346,1740946242456,-500.0,0.0002206,2]
[355176347,1740946242466,-500.0,0.0002206,2]
[355176348,1740946242476,-500.0,0.0002206,2]
[355176349,1740946242486,-500.0,0.0002206,2]
[355176350,1740946242496,-250.0,0.0002206,2]
[355176351,1740946242506,-500.0,0.0002206,2]
[355176352,1740946242516,-500.0,0.0002206,2]
[355176353,1740946242526,-500.0,0.0002206,2]
[355176354,1740946242536,-385.84720658,0.0002206,2]
[355176355,1740946242547,-500.0,0.0002206,2]
[355176356,1740946242557,-500.0,0.0002206,2]
[355176357,1740946242567,-500.0,0.0002206,2]
[355176359,1740946242579,-500.0,0.0002206,2]
[355176361,1740946242589,-500.0,0.0002206,2]
[355176363,1740946242599,-500.0,0.0002206,2]
[355176364,1740946242609,-244.97454687,0.0002206,2]
[355176367,1740946242619,-500.0,0.0002206,2]
[355176369,1740946242630,-483.35532397,0.0002206,2]
[355176370,1740946242640,-500.0,0.0002206,2]
[355176371,1740946242650,-500.0,0.0002206,2]
[355176372,1740946242660,-500.0,0.0002206,2]
[355176373,1740946242670,-44.87507231,0.0002206,2]
[355176516,1740946246105,-769.78193441,0.0001996,2]
[355176519,1740946246115,-455.12492769,0.0002206,2]
[355176522,1740946246125,-491.62522626,0.0002206,2]
[355176524,1740946246135,-500.0,0.0002206,2]
[355176527,1740946246145,-183.81909133,0.0002206,2]
[355176529,1740946246155,-500.0,0.0002206,2]
[355176531,1740946246166,-97.97006217,0.0002206,2]
[355176533,1740946246178,-402.02993783,0.0002206,2]
[355176535,1740946246187,-500.0,0.0002206,2]
[355176537,1740946246197,-522.65574674,0.0002206,2]
[355176539,1740946246207,-390.83360182,0.0002206,2]
[355176541,1740946246216,-7570.26709801,0.00022061,2]